fUST/lending_fUST_20250621
["ID","MTS","AMOUNT","RATE_DAILY","PERIOD"]
[366763448,1750438239597,-552.06,0.00020113,2]
[366763449,1750438239608,-476.89,0.00020113,2]
[366763450,1750438239618,-684.83,0.00020113,2]
[366763451,1750438239629,-460.0,0.00020113,2]
[366763452,1750438239640,-460.0,0.00020113,2]
[366763453,1750438239650,-460.0,0.00020113,2]
[366763454,1750438239660,-959.28,0.00020113,2]
[366763455,1750438239670,-1204.54,0.00020113,2]
[366763456,1750438239680,-460.0,0.00020113,2]
[366763457,1750438239690,-1373.17,0.00020113,2]
[366763458,1750438239700,-460.0,0.00020114,2]
[366763459,1750438239710,-460.0,0.00020114,2]
[366763460,1750438239720,-460.0,0.00020114,2]
[366763461,1750438239730,-655.82,0.00020114,2]
[366763462,1750438239739,-1735.94,0.00020114,2]
[366763463,1750438239749,-460.0,0.00020114,2]
[366763464,1750438239759,-158.24320306,0.00020114,2]
[366763465,1750438239770,-775.48,0.00020114,2]
[366763466,1750438239779,-460.0,0.00020114,2]
[366763467,1750438239789,-460.0,0.00020114,2]
[366763468,1750438239799,-734.04,0.00020114,2]
[366763469,1750438239810,-460.0,0.00020114,2]
[366763470,1750438239820,-751.55,0.00020114,2]
[366763471,1750438239830,-460.0,0.00020115,2]
[366763472,1750438239841,-464.41,0.00020115,2]
[366763473,1750438239852,-1932.17,0.00020115,2]
[366763474,1750438239862,-664.09,0.00020115,2]
[366763475,1750438239871,-423.593099,0.00020187,2]
[366763476,1750438239881,-167.61359135,0.00020355,2]
[366763477,1750438239894,-460.0,0.00020387,2]
[366763478,1750438239907,-1455.81,0.00020387,2]
[366763479,1750438239917,-1345.42,0.00020387,2]
[366763480,1750438239927,-1285.91,0.00020387,2]
[366763481,1750438239937,-460.0,0.00020387,2]
[366763482,1750438239947,-552.06,0.00020387,2]
[366763483,1750438239957,-476.89,0.00020387,2]
[366763484,1750438239967,-684.83,0.00020387,2]
[366763486,1750438239977,-282.09,0.00020387,2]
[366763487,1750438239987,-460.0,0.00020387,2]
[366763488,1750438239997,-460.0,0.00020387,2]
[366763489,1750438240007,-959.28,0.00020387,2]
[366763490,1750438240020,-1204.54,0.00020387,2]
[366763491,1750438240031,-460.0,0.00020387,2]
[366763493,1750438240041,-1373.17,0.00020387,2]
[366763495,1750438240052,-440.0,0.00020388,2]
[366763497,1750438240062,-460.0,0.00020388,2]
[366763499,1750438240072,-460.0,0.00020388,2]
[366763501,1750438240082,-655.82,0.00020388,2]
[366763502,1750438240091,-1735.94,0.00020388,2]
[366763504,1750438240101,-460.0,0.00020388,2]
[366763506,1750438240112,-775.48,0.00020388,2]
[366763508,1750438240125,-460.0,0.00020388,2]
[366763510,1750438240136,-734.04,0.00020388,2]
[366763511,1750438240146,-460.0,0.00020388,2]
[366763513,1750438240156,-751.55,0.00020388,2]
[366763514,1750438240166,-460.0,0.00020389,2]
[366763516,1750438240176,-464.41,0.00020389,2]
[366763517,1750438240185,-1932.17,0.00020389,2]
[366763518,1750438240195,-664.09,0.00020389,2]
[366763519,1750438240205,-160.0,0.00020441,2]
[366763520,1750438240216,-213.51557418,0.00020441,2]
[366763521,1750438240225,-160.0,0.00020441,2]
[366763522,1750438240235,-424.85694595,0.00020441,2]
[366763523,1750438240245,-230.06456406,0.00020441,2]
[366763525,1750438240255,-846.08887863,0.00020441,2]
[366763526,1750438240264,-160.0,0.00020441,2]
[366763527,1750438240275,-160.0,0.00020441,2]
[366763528,1750438240284,-836.27303475,0.00020441,2]
[366763529,1750438240296,-523.92420239,0.00020441,2]
[366763530,1750438240305,-1000.0,0.00020521,2]
[366763531,1750438240316,-472.11075741,0.00020529,2]
[366763532,1750438240325,-500.0,0.00020547,7]
[366763533,1750438240334,-500.0,0.00020548,2]
[366763534,1750438240344,-236.386,0.0002055,2]
[366763535,1750438240355,-583.97,0.000206,2]
[366763536,1750438240365,-460.0,0.00020661,2]
[366763537,1750438240375,-1455.81,0.00020661,2]
[366763538,1750438240388,-1345.42,0.00020661,2]
[366763539,1750438240398,-1285.91,0.00020661,2]
[366763540,1750438240409,-460.0,0.00020661,2]
[366763541,1750438240420,-552.06,0.00020661,2]
[366763542,1750438240429,-476.89,0.00020661,2]
[366763543,1750438240440,-684.83,0.00020661,2]
[366763544,1750438240450,-460.0,0.00020661,2]
[366763545,1750438240460,-460.0,0.00020661,2]
[366763546,1750438240470,-959.28,0.00020661,2]
[366763547,1750438240480,-1204.54,0.00020661,2]
[366763548,1750438240489,-460.0,0.00020661,2]
[366763549,1750438240499,-1373.17,0.00020661,2]
[366763550,1750438240509,-460.0,0.00020662,2]
[366763551,1750438240519,-460.0,0.00020662,2]
[366763552,1750438240529,-655.82,0.00020662,2]
[366763553,1750438240539,-1735.94,0.00020662,2]
[366763554,1750438240549,-460.0,0.00020662,2]
[366763555,1750438240558,-775.48,0.00020662,2]
[366763556,1750438240568,-734.04,0.00020662,2]
[366763557,1750438240578,-460.0,0.00020662,2]
[366763558,1750438240587,-751.55,0.00020662,2]
[366763559,1750438240597,-460.0,0.00020663,2]
[366763560,1750438240607,-464.41,0.00020663,2]
[366763561,1750438240616,-1932.17,0.00020663,2]
[366763562,1750438240626,-664.09,0.00020663,2]
[366763563,1750438240639,-1214.74,0.000207,2]
[366763564,1750438240649,-317.73638785,0.0002084,2]
[366763565,1750438240659,-460.0,0.00020935,2]
[366763566,1750438240669,-1455.81,0.00020935,2]
[366763567,1750438240679,-1345.42,0.00020935,2]
[366763568,1750438240689,-1285.91,0.00020935,2]
[366763569,1750438240699,-460.0,0.00020935,2]
[366763570,1750438240710,-552.06,0.00020935,2]
[366763571,1750438240720,-476.89,0.00020935,2]
[366763572,1750438240730,-684.83,0.00020935,2]
[366763573,1750438240740,-460.0,0.00020935,2]
[366763574,1750438240750,-460.0,0.00020935,2]
[366763575,1750438240760,-959.28,0.00020935,2]
[366763576,1750438240769,-1204.54,0.00020935,2]
[366763577,1750438240779,-460.0,0.00020935,2]
[366763578,1750438240788,-1373.17,0.00020935,2]
[366763579,1750438240797,-584.07592663,0.00020936,2]
[366763580,1750438240955,-460.0,0.00020936,2]
[366763581,1750438240970,-655.82,0.00020936,2]
[366763582,1750438240980,-1735.94,0.00020936,2]
[366763583,1750438240991,-460.0,0.00020936,2]
[366763584,1750438241000,-775.48,0.00020936,2]
[366763585,1750438241010,-734.04,0.00020936,2]
[366763586,1750438241024,-460.0,0.00020936,2]
[366763587,1750438241033,-751.55,0.00020936,2]
[366763588,1750438241043,-460.0,0.00020937,2]
[366763589,1750438241053,-464.41,0.00020937,2]
[366763590,1750438241063,-1932.17,0.00020937,2]
[366763591,1750438241073,-664.09,0.00020937,2]
[366763592,1750438241082,-376.17074754,0.00020958,2]
[366763593,1750438241093,-80722.79384481,0.00021,2]
[366763594,1750438241102,-420.0,0.00021019,2]
[366763595,1750438241112,-420.0,0.0002102,2]
[366763596,1750438241121,-1500.0,0.00021068,2]
[366763597,1750438241131,-500.0,0.00021095,8]
[366763598,1750438241144,-1680.0,0.00021121,2]
[366763599,1750438241153,-458.0,0.0002113,2]
[366763600,1750438241163,-207.4,0.00021146,2]
[366763601,1750438241172,-472.11075741,0.00021158,2]
[366763602,1750438241182,-458.0,0.00021191,2]
[366763603,1750438241192,-460.0,0.00021209,2]
[366763604,1750438241201,-1455.81,0.00021209,2]
[366763605,1750438241211,-1345.42,0.00021209,2]
[366763606,1750438241221,-1285.91,0.00021209,2]
[366763607,1750438241231,-460.0,0.00021209,2]
[366763608,1750438241240,-552.06,0.00021209,2]
[366763609,1750438241250,-476.89,0.00021209,2]
[366763610,1750438241259,-684.83,0.00021209,2]
[366763611,1750438241268,-460.0,0.00021209,2]
[366763612,1750438241278,-512.73549389,0.00021209,2]
[366763613,1750438241288,-959.28,0.00021209,2]
[366763614,1750438241297,-1204.54,0.00021209,2]
[366763615,1750438241307,-460.0,0.00021209,2]
[366763616,1750438241317,-1373.17,0.00021209,2]
[366763617,1750438241327,-460.0,0.0002121,2]
[366763618,1750438241336,-655.82,0.0002121,2]
[366763619,1750438241346,-1735.94,0.0002121,2]
[366763620,1750438241356,-460.0,0.0002121,2]
[366763621,1750438241366,-775.48,0.0002121,2]
[366763622,1750438241376,-734.04,0.0002121,2]
[366763623,1750438241386,-460.0,0.0002121,2]
[366763624,1750438241396,-751.55,0.0002121,2]
[366763625,1750438241406,-460.0,0.00021211,2]
[366763626,1750438241416,-464.41,0.00021211,2]
[366763627,1750438241427,-1932.17,0.00021211,2]
[366763628,1750438241436,-664.09,0.00021211,2]
[366763629,1750438241446,-160.0,0.00021213,2]
[366763630,1750438241457,-458.0,0.00021256,2]
[366763631,1750438241467,-1294.09869741,0.000213,5]
[366763632,1750438241476,-1294.09869712,0.000213,5]
[366763633,1750438241486,-1294.09869712,0.000213,5]
[366763634,1750438241495,-1294.09869712,0.00021417,5]
[366763635,1750438241505,-460.0,0.00021483,2]
[366763636,1750438241515,-1455.81,0.00021483,2]
[366763637,1750438241524,-1345.42,0.00021483,2]
[366763638,1750438241534,-1285.91,0.00021483,2]
[366763639,1750438241544,-460.0,0.00021483,2]
[366763640,1750438241553,-552.06,0.00021483,2]
[366763641,1750438241564,-476.89,0.00021483,2]
[366763642,1750438241574,-684.83,0.00021483,2]
[366763643,1750438241583,-460.0,0.00021483,2]
[366763644,1750438241594,-959.28,0.00021483,2]
[366763645,1750438241604,-1204.54,0.00021483,2]
[366763646,1750438241614,-460.0,0.00021483,2]
[366763647,1750438241624,-1373.17,0.00021483,2]
[366763648,1750438241636,-460.0,0.00021484,2]
[366763649,1750438241646,-655.82,0.00021484,2]
[366763650,1750438241657,-1735.94,0.00021484,2]
[366763651,1750438241666,-460.0,0.00021484,2]
[366763652,1750438241676,-775.48,0.00021484,2]
[366763653,1750438241685,-734.04,0.00021484,2]
[366763654,1750438241695,-460.0,0.00021484,2]
[366763655,1750438241705,-751.55,0.00021484,2]
[366763656,1750438241714,-460.0,0.00021485,2]
[366763657,1750438241725,-464.41,0.00021485,2]
[366763658,1750438241735,-1932.17,0.00021485,2]
[366763659,1750438241745,-664.09,0.00021485,2]
[366763660,1750438241755,-3292.11376,0.00021589,2]
[366763661,1750438241764,-1294.09869712,0.0002159,5]
[366763662,1750438241774,-1466.74674808,0.00021616,2]
[366763663,1750438241783,-163.92,0.0002163,2]
[366763664,1750438241793,-163.92,0.0002163,2]
[366763665,1750438241802,-163.92,0.0002163,2]
[366763666,1750438241812,-163.95574605,0.0002163,2]
[366763667,1750438241821,-233.0,0.00021684,2]
[366763668,1750438241831,-233.0,0.00021753,2]
[366763669,1750438241841,-965.0,0.00021756,2]
[366763670,1750438241850,-649.0,0.00021756,2]
[366763671,1750438241860,-2160.0,0.00021756,2]
[366763672,1750438241870,-465.621,0.00021756,2]
[366763673,1750438241879,-460.0,0.00021757,2]
[366763674,1750438241889,-1455.81,0.00021757,2]
[366763675,1750438241899,-1345.42,0.00021757,2]
[366763676,1750438241908,-1285.91,0.00021757,2]
[366763677,1750438241917,-460.0,0.00021757,2]
[366763678,1750438241929,-552.06,0.00021757,2]
[366763679,1750438241938,-476.89,0.00021757,2]
[366763680,1750438241948,-684.83,0.00021757,2]
[366763681,1750438241958,-460.0,0.00021757,2]
[366763682,1750438241967,-959.28,0.00021757,2]
[366763683,1750438241977,-1204.54,0.00021757,2]
[366763684,1750438241987,-460.0,0.00021757,2]
[366763685,1750438241997,-1373.17,0.00021757,2]
[366763686,1750438242008,-460.0,0.00021758,2]
[366763687,1750438242021,-655.82,0.00021758,2]
[366763688,1750438242032,-1735.94,0.00021758,2]
[366763689,1750438242042,-460.0,0.00021758,2]
[366763690,1750438242052,-775.48,0.00021758,2]
[366763691,1750438242063,-734.04,0.00021758,2]
[366763692,1750438242073,-460.0,0.00021758,2]
[366763693,1750438242084,-751.55,0.00021758,2]
[366763694,1750438242094,-460.0,0.00021759,2]
[366763695,1750438242105,-464.41,0.00021759,2]
[366763696,1750438242114,-1932.17,0.00021759,2]
[366763697,1750438242124,-664.09,0.00021759,2]
[366763698,1750438242134,-1294.09869712,0.00021762,5]
[366763699,1750438242143,-472.11075741,0.00021786,2]
[366763700,1750438242153,-458.0,0.00021788,2]
[366763701,1750438242163,-160.0,0.00021867,3]
[366763702,1750438242173,-512.9361114,0.0002189,2]
[366763703,1750438242184,-685.3,0.000219,2]
[366763704,1750438242195,-574.4346525,0.0002191,2]
[366763705,1750438242204,-574.4346525,0.0002191,2]
[366763706,1750438242214,-574.4346525,0.0002191,2]
[366763707,1750438242223,-200.0,0.00021917,2]
[366763708,1750438242233,-500.0,0.00021917,2]
[366763709,1750438242242,-1294.09869712,0.00021934,6]
[366763710,1750438242252,-6613.51608982,0.00022,2]
[366763711,1750438242261,-176.0,0.00022,2]
[366763712,1750438242271,-168.0,0.00022,2]
[366763713,1750438242281,-1455.81,0.00022031,2]
[366763714,1750438242291,-1345.42,0.00022031,2]
[366763715,1750438242300,-1285.91,0.00022031,2]
[366763716,1750438242310,-460.0,0.00022031,2]
[366763717,1750438242320,-552.06,0.00022031,2]
[366763718,1750438242330,-476.89,0.00022031,2]
[366763719,1750438242340,-684.83,0.00022031,2]
[366763720,1750438242349,-460.0,0.00022031,2]
[366763721,1750438242359,-959.28,0.00022031,2]
[366763722,1750438242369,-1204.54,0.00022031,2]
[366763723,1750438242378,-460.0,0.00022031,2]
[366763724,1750438242389,-1373.17,0.00022031,2]
[366763725,1750438242399,-460.0,0.00022032,2]
[366763726,1750438242408,-655.82,0.00022032,2]
[366763727,1750438242418,-1735.94,0.00022032,2]
[366763728,1750438242427,-460.0,0.00022032,2]
[366763729,1750438242437,-775.48,0.00022032,2]
[366763730,1750438242446,-734.04,0.00022032,2]
[366763731,1750438242455,-460.0,0.00022032,2]
[366763732,1750438242465,-751.55,0.00022032,2]
[366763733,1750438242474,-460.0,0.00022033,2]
[366763734,1750438242484,-464.41,0.00022033,2]
[366763735,1750438242494,-1932.17,0.00022033,2]
[366763736,1750438242503,-664.09,0.00022033,2]
[366763737,1750438242513,-3387.73,0.00022073,2]
[366763738,1750438242523,-583.97,0.000221,7]
[366763739,1750438242532,-1294.09869712,0.00022107,6]
[366763740,1750438242542,-200.0,0.00022191,30]
[366763741,1750438242551,-1214.74,0.000222,7]
[366763742,1750438242561,-800.0,0.00022251,2]
[366763743,1750438242571,-233.0,0.00022278,2]
[366763744,1750438242580,-1294.09869712,0.00022279,6]
[366763745,1750438242589,-1455.81,0.00022305,2]
[366763746,1750438242599,-1345.42,0.00022305,2]
[366763747,1750438242609,-1285.91,0.00022305,2]
[366763749,1750438242618,-460.0,0.00022305,2]
[366763750,1750438242627,-552.06,0.00022305,2]
[366763751,1750438242637,-476.89,0.00022305,2]
[366763752,1750438242647,-684.83,0.00022305,2]
[366763753,1750438242657,-460.0,0.00022305,2]
[366763755,1750438242667,-959.28,0.00022305,2]
[366763757,1750438242676,-1204.54,0.00022305,2]
[366763758,1750438242685,-460.0,0.00022305,2]
[366763760,1750438242694,-1373.17,0.00022305,2]
[366763761,1750438242704,-460.0,0.00022306,2]
[366763762,1750438242713,-655.82,0.00022306,2]
[366763763,1750438242723,-1735.94,0.00022306,2]
[366763764,1750438242733,-460.0,0.00022306,2]
[366763765,1750438242743,-775.48,0.00022306,2]
[366763766,1750438242752,-734.04,0.00022306,2]
[366763767,1750438242762,-460.0,0.00022306,2]
[366763768,1750438242772,-751.55,0.00022306,2]
[366763769,1750438242782,-460.0,0.00022307,2]
[366763770,1750438242792,-464.41,0.00022307,2]
[366763771,1750438242803,-1932.17,0.00022307,2]
[366763772,1750438242812,-664.09,0.00022307,2]
[366763773,1750438242822,-472.11075741,0.00022415,2]
[366763774,1750438242832,-1294.09869712,0.00022452,7]
[366763775,1750438242841,-500.0,0.00022465,2]
[366763776,1750438242851,-59594.67,0.000225,2]
[366763777,1750438242862,-215.0738,0.00022515,2]
[366763778,1750438242872,-1455.81,0.00022579,2]
[366763779,1750438242882,-1345.42,0.00022579,2]
[366763780,1750438242896,-1285.91,0.00022579,2]
[366763781,1750438242905,-460.0,0.00022579,2]
[366763782,1750438242915,-552.06,0.00022579,2]
[366763783,1750438242925,-476.89,0.00022579,2]
[366763784,1750438242935,-684.83,0.00022579,2]
[366763785,1750438242944,-263.2545806,0.00022579,2]
[366763786,1750438242955,-959.28,0.00022579,2]
[366763787,1750438242964,-1204.54,0.00022579,2]
[366763788,1750438242973,-460.0,0.00022579,2]
[366763789,1750438242983,-1373.17,0.00022579,2]
[366763790,1750438242993,-341.1343431,0.0002258,2]
[366763791,1750438243002,-655.82,0.0002258,2]
[366763792,1750438243013,-1735.94,0.0002258,2]
[366763793,1750438243028,-460.0,0.0002258,2]
[366763794,1750438243037,-775.48,0.0002258,2]
[366763795,1750438243047,-734.04,0.0002258,2]
[366763796,1750438243058,-460.0,0.0002258,2]
[366763797,1750438243068,-751.55,0.0002258,2]
[366763798,1750438243078,-460.0,0.00022581,2]
[366763799,1750438243087,-408.2722236,0.00022581,2]
[366763801,1750438243188,-56.1377764,0.00022581,2]
[366763802,1750438243197,-1697.9858496,0.00022581,2]
[366763804,1750438243229,-234.1841504,0.00022581,2]
[366763805,1750438243239,-664.09,0.00022581,2]
[366763806,1750438243248,-160.0,0.00022583,2]
[366763807,1750438243257,-1294.09869712,0.00022624,7]
[366763808,1750438243266,-153.0000001,0.0002273,2]
[366763809,1750438243276,-233.0,0.00022782,2]
[366763810,1750438243286,-233.0,0.00022793,2]
[366763811,1750438243295,-1294.09869712,0.00022797,7]
[366763813,1750438243305,-3129.55255765,0.000228,5]
[366763824,1750438245922,-163.74806093,0.00019291,2]
[366763832,1750438253374,-163.74806093,0.0001929,2]
[366763833,1750438253413,-25.73453328,0.0001929,2]
[366763834,1750438260034,-204.97109455,0.0001929,2]
[366763835,1750438260062,-64.35177904,0.00019291,2]
[366763836,1750438269592,-182.84925607,0.00019235,2]
[366763837,1750438272088,-3.94657062,0.00019235,2]
[366763838,1750438272114,-180.10628945,0.0001929,2]
[366763839,1750438276004,-9.37630476,0.0001929,2]
[366763840,1750438276204,-158.43263007,0.00019291,2]
[366763841,1750438282437,10000.0,0.00018927,2]
[366763842,1750438287243,-177.02203055,0.00019291,2]
[366763843,1750438304832,-103.69549941,0.00019291,2]
[366763844,1750438304857,-54.77295514,0.00019291,2]
[366763845,1750438309285,-210.31204284,0.00019291,2]
[366763846,1750438310781,2000.0,0.00018866,120]
[366763847,1750438312669,-215.0,0.00019291,2]
[366763848,1750438323627,-176.24964483,0.0001929,2]
[366763849,1750438328282,-38.75035517,0.0001929,2]
[366763850,1750438328308,-136.56500202,0.00019291,2]
[366763851,1750438328330,-39.68464281,0.00019291,2]
[366763852,1750438357979,-215.33986763,0.0001929,2]
[366763853,1750438363054,-204.76240816,0.0001929,2]
[366763854,1750438410791,200.0,0.00024066,120]
[366763855,1750438470786,200.0,0.00023872,120]
[366763856,1750438713391,5000.0,0.00019102,2]
[366763858,1750438890822,200.0,0.00023846,120]
[366763859,1750438918964,2568.96772435,0.00019102,2]
[366763860,1750438941025,24900.0,0.00018729,2]
[366763861,1750438951447,200.0,0.00024516,120]
[366763862,1750439071419,200.0,0.00023709,120]
[366763864,1750439109669,397.238982,0.00013699,2]
[366763865,1750439110487,-193.171101,0.00019178,2]
[366763866,1750439132022,150.5,0.0002328,120]
[366763867,1750439132481,150.5,0.0002327,120]
[366763868,1750439132955,150.5,0.0002326,120]
[366763869,1750439133419,176.06,0.0002397,120]
[366763870,1750439196873,213.44602724,0.000189,2]
[366763871,1750439224064,150.0,0.000189,2]
[366763872,1750439327921,4463.2014638,0.00018729,2]
[366763873,1750439339609,2000.0,0.00018729,120]
[366763874,1750439369311,205.6445055,0.00018893,2]
[366763875,1750439370767,200.0,0.00024439,120]
[366763877,1750439431491,200.0,0.00023893,120]
[366763914,1750439432313,-300.0,0.00019289,2]
[366763916,1750439432322,-300.0,0.00019563,2]
[366763918,1750439432331,-1200.0,0.00019563,2]
[366763920,1750439432341,-167.80893483,0.00019564,2]
[366763922,1750439432350,-366.90211614,0.00019564,2]
[366763924,1750439432360,-662.19,0.00019564,2]
[366763926,1750439432373,-589.37,0.00019564,2]
[366763928,1750439432382,-460.0,0.00019564,2]
[366763930,1750439432391,-460.0,0.00019564,2]
[366763932,1750439432401,-460.0,0.00019564,2]
[366763934,1750439432411,-460.0,0.00019564,2]
[366763936,1750439432420,-460.0,0.00019564,2]
[366763938,1750439432430,-795.64,0.00019564,2]
[366763940,1750439432442,-460.0,0.00019564,2]
[366763942,1750439432451,-460.0,0.00019564,2]
[366763943,1750439432461,-460.0,0.00019564,2]
[366763945,1750439432474,-460.0,0.00019564,2]
[366763947,1750439432483,-460.0,0.00019564,2]
[366763949,1750439432493,-635.10227579,0.00019564,2]
[366763951,1750439432502,-1788.24618713,0.00019564,2]
[366763953,1750439432511,-460.0,0.00019565,2]
[366763955,1750439432520,-460.0,0.00019565,2]
[366763957,1750439432530,-460.0,0.00019565,2]
[366763959,1750439432541,-885.58,0.00019565,2]
[366763961,1750439432552,-460.0,0.00019565,2]
[366763963,1750439432564,-460.0,0.00019829,2]
[366763965,1750439432575,-493.71184592,0.00019829,2]
[366763967,1750439432584,-406.7498266,0.00019829,2]
[366763969,1750439432594,-462.53164425,0.00019829,2]
[366763971,1750439432603,-460.0,0.00019837,2]
[366763992,1750439432828,-460.0,0.00019837,2]
[366763994,1750439432840,-552.08,0.00019837,2]
[366763996,1750439432850,-629.37,0.00019837,2]
[366763998,1750439432860,-610.13,0.00019837,2]
[366764000,1750439432869,-662.19,0.00019838,2]
[366764002,1750439432879,-589.37,0.00019838,2]
[366764004,1750439432889,-460.0,0.00019838,2]
[366764006,1750439432901,-460.0,0.00019838,2]
[366764008,1750439432910,-364.18329125,0.00019838,2]
[366764009,1750439432923,-95.81670875,0.00019838,2]
[366764010,1750439432933,-460.0,0.00019838,2]
[366764011,1750439432943,-460.0,0.00019838,2]
[366764012,1750439432953,-795.64,0.00019838,2]
[366764013,1750439432964,-460.0,0.00019838,2]
[366764014,1750439432974,-460.0,0.00019838,2]
[366764015,1750439432984,-460.0,0.00019838,2]
[366764016,1750439432994,-460.0,0.00019838,2]
[366764017,1750439433004,-460.0,0.00019838,2]
[366764018,1750439433013,-500.0,0.00019838,2]
[366764019,1750439433023,-460.0,0.00019839,2]
[366764020,1750439433034,-460.0,0.00019839,2]
[366764021,1750439433045,-460.0,0.00019839,2]
[366764022,1750439433055,-885.58,0.00019839,2]
[366764023,1750439433065,-460.0,0.00019839,2]
[366764024,1750439433076,-855.5407408,0.00020068,2]
[366764025,1750439433119,-4144.4592592,0.00020068,2]
[366764026,1750439433130,-460.0,0.00020111,2]
[366764027,1750439433140,-552.08,0.00020111,2]
[366764028,1750439433150,-629.37,0.00020111,2]
[366764029,1750439433161,-610.13,0.00020111,2]
[366764030,1750439433171,-662.19,0.00020112,2]
[366764031,1750439433181,-589.37,0.00020112,2]
[366764032,1750439433191,-460.0,0.00020112,2]
[366764033,1750439433201,-460.0,0.00020112,2]
[366764034,1750439433211,-460.0,0.00020112,2]
[366764035,1750439433222,-460.0,0.00020112,2]
[366764036,1750439433232,-460.0,0.00020112,2]
[366764037,1750439433242,-795.64,0.00020112,2]
[366764038,1750439433252,-460.0,0.00020112,2]
[366764039,1750439433261,-460.0,0.00020112,2]
[366764040,1750439433271,-460.0,0.00020112,2]
[366764041,1750439433282,-593.30167809,0.00020112,2]
[366764042,1750439433291,-460.0,0.00020112,2]
[366764043,1750439433301,-354.92681403,0.00020113,2]
[366764044,1750439433311,-460.0,0.00020113,2]
[366764045,1750439433321,-460.0,0.00020113,2]
[366764046,1750439433330,-885.58,0.00020113,2]
[366764047,1750439433341,-460.0,0.00020113,2]
[366764048,1750439433351,-397.238982,0.00020187,2]
[366764049,1750439433361,-460.0,0.00020385,2]
[366764050,1750439433375,-552.08,0.00020385,2]
[366764051,1750439433384,-629.37,0.00020385,2]
[366764052,1750439433394,-610.13,0.00020385,2]
[366764053,1750439433403,-662.19,0.00020386,2]
[366764054,1750439433415,-589.37,0.00020386,2]
[366764055,1750439433424,-460.0,0.00020386,2]
[366764056,1750439433433,-460.0,0.00020386,2]
[366764057,1750439433443,-460.0,0.00020386,2]
[366764058,1750439433455,-64.38740265,0.00020386,2]
[366764059,1750439433473,-395.61259735,0.00020386,2]
[366764060,1750439433486,-460.0,0.00020386,2]
[366764061,1750439433500,-699.28740265,0.00020386,2]
[366764540,1750439449916,-460.0,0.00019564,2]
[366764541,1750439449925,-176.24964483,0.00019828,2]
[366764542,1750439449935,-460.0,0.00019838,2]
[366764543,1750439449944,-460.0,0.00020112,2]
[366764544,1750439449954,-96.35259735,0.00020386,2]
[366764545,1750439449964,-460.0,0.00020386,2]
[366764546,1750439449974,-460.0,0.00020386,2]
[366764547,1750439449984,-460.0,0.00020386,2]
[366764548,1750439449994,-460.0,0.00020386,2]
[366764549,1750439450003,-460.0,0.00020386,2]
[366764550,1750439450013,-460.0,0.00020387,2]
[366764551,1750439450022,-460.0,0.00020387,2]
[366764552,1750439450031,-885.58,0.00020387,2]
[366764553,1750439450040,-460.0,0.00020387,2]
[366764554,1750439450051,-500.0,0.00020432,2]
[366764555,1750439450060,-698.44510928,0.00020432,2]
[366764556,1750439450069,-698.44510928,0.00020432,2]
[366764557,1750439450078,-543.24915588,0.00020432,2]